bitfinex-derivatives/quotes_ETHF0:USTF0_20260303
["timestamp","ask_amount","ask_price","bid_price","bid_amount"]
[1772563288714,2.75522378,1998.6,1997.6,0.00524733]
[1772563289003,2.50506378,1998.3,1997.6,0.00524733]
[1772563289212,2.50506378,1998.1,1997.6,0.00524733]
[1772563290110,2.50506378,1998.1,1997.2,2.9514992]
[1772563291216,2.50506378,1998.1,1997.2,2.95619505]
[1772563292907,5.21522784,1998.1,1997.2,0.00469585]
[1772563293119,2.50506378,1998.0,1996.8,2.7011592]
[1772563293317,2.50506378,1997.7,1996.8,2.7011592]
[1772563293515,2.50506378,1997.5,1996.8,2.7011592]
[1772563294111,0.00381305,1997.5,1997.0,2.7011592]
[1772563294309,2.50506378,1997.7,1997.0,2.7011592]
[1772563294715,2.50506378,1997.7,1997.1,2.9515092]
[1772563295318,2.51045567,1997.7,1997.1,2.9515092]
[1772563297516,0.00539189,1997.7,1997.1,2.9515092]
[1772563299109,2.51045567,1997.7,1997.1,2.9515092]
[1772563299511,2.50506378,1998.1,1997.6,2.7011592]
[1772563299716,2.50506378,1998.4,1997.6,2.7011592]
[1772563300230,2.50506378,1998.4,1997.5,2.9514592]
[1772563300616,2.51041909,1998.4,1997.5,2.9514592]
[1772563302421,2.50506378,1998.2,1997.5,2.9514592]
[1772563302915,2.50506378,1998.2,1997.2,2.7011592]
[1772563303112,2.50506378,1998.2,1997.1,4.36635595]
[1772563303314,2.50506378,1998.0,1997.1,0.25035]
[1772563303620,2.50506378,1997.8,1997.1,0.25035]
[1772563304016,2.50506378,1997.8,1997.2,2.7011592]
[1772563304819,2.50506378,1997.8,1997.1,0.25035]
[1772563305021,2.50506378,1997.8,1997.1,2.9515092]
[1772563305217,9.44606378,1998.1,1997.2,2.7011592]
[1772563305418,9.44606378,1998.1,1997.4,2.7011592]
[1772563305622,2.50506378,1998.0,1997.4,2.7011592]
[1772563307127,6.941,1998.1,1997.4,2.7011592]
[1772563307324,2.50506378,1998.2,1996.9,6.14220973]
[1772563307325,2.50506378,1998.2,1997.6,2.7011592]
[1772563308422,9.53552829,1998.3,1997.8,2.63173744]
[1772563308626,2.59252829,1998.2,1997.8,2.63173744]
[1772563309127,2.59252829,1998.2,1997.7,0.25028]
[1772563309422,2.59252829,1998.2,1997.7,2.88201744]
[1772563310225,2.59252829,1998.2,1997.7,2.63173744]
[1772563310420,2.59252829,1998.2,1997.5,2.63173744]
[1772563310625,2.59252829,1998.2,1997.3,2.88205744]
[1772563313321,2.59252829,1998.0,1997.3,0.25032]
[1772563313525,2.59252829,1997.8,1996.8,6.7537781]
[1772563313720,2.59252829,1997.6,1996.8,2.63777215]
[1772563313926,2.59252829,1997.6,1996.8,2.88815215]
[1772563314627,2.59252829,1997.6,1996.8,0.25641471]
[1772563315426,2.59252829,1997.6,1996.8,2.88815215]
[1772563316329,2.59252829,1997.6,1996.8,0.00603471]
[1772563317229,2.59252829,1997.3,1996.1,2.63173744]
[1772563317429,2.59252829,1997.1,1996.1,2.63173744]
[1772563318026,2.59252829,1996.9,1995.9,2.88222744]
[1772563318328,2.59252829,1996.7,1996.1,2.63743721]
[1772563319122,2.59686317,1996.9,1996.3,2.63173744]
[1772563319328,2.59686317,1996.9,1996.2,0.25046]
[1772563320128,2.59686317,1996.9,1996.2,2.88219744]
[1772563321229,2.59686317,1996.9,1996.1,0.00569977]
[1772563326426,2.59686317,1996.9,1995.7,2.88225744]
[1772563327434,2.59252829,1996.7,1995.7,0.004713]
[1772563327637,2.59252829,1996.5,1995.2,2.88231744]
[1772563328232,2.59252829,1996.3,1995.2,2.88231744]
[1772563328432,2.59252829,1996.3,1995.0,2.63173744]
[1772563328737,2.59252829,1996.3,1995.0,2.63627121]
[1772563329837,2.91800924,1996.3,1995.1,2.88233744]
[1772563330135,2.59252829,1996.5,1995.8,2.63173744]
[1772563332838,2.59252829,1996.5,1995.7,0.25053]
[1772563333042,2.59252829,1996.5,1995.4,2.63173744]
[1772563333935,2.59252829,1996.5,1995.6,2.63173744]
[1772563334434,2.59252829,1996.5,1995.5,0.25055]
[1772563334630,2.59252829,1996.5,1995.4,2.63173744]
[1772563334830,2.84295829,1996.5,1995.2,2.63173744]
[1772563335935,2.84295829,1996.5,1995.4,2.63173744]
[1772563337835,2.84295829,1996.5,1995.0,0.00453377]
[1772563338041,2.37231867,1996.0,1995.0,2.50438109]
[1772563338241,2.37231867,1995.8,1995.0,2.50438109]
[1772563338443,2.37231867,1995.8,1995.0,0.00453377]
[1772563342048,2.37231867,1995.8,1995.0,2.39986326]
[1772563343548,2.37231867,1995.8,1995.0,0.00453377]
[1772563344951,2.37231867,1995.8,1995.0,2.39986326]
[1772563345752,2.37231867,1995.8,1995.0,0.00453377]
[1772563346155,2.37231867,1995.8,1995.0,2.39986326]
[1772563349745,2.37231867,1995.8,1995.1,0.2506]
[1772563349948,2.37231867,1995.8,1995.2,2.39532949]
[1772563350553,2.39162391,1996.1,1995.2,2.39532949]
[1772563355158,2.39162391,1996.1,1995.3,0.25058]
[1772563355364,2.39162391,1996.1,1995.3,2.64590949]
[1772563357270,2.39162391,1996.2,1995.6,2.64585949]
[1772563357470,6.957,1996.3,1995.6,2.64585949]
[1772563357671,2.39162391,1996.2,1995.6,2.64585949]
[1772563359376,2.39162391,1996.2,1995.6,2.39532949]
[1772563361175,9.34862391,1996.3,1995.8,2.39532949]
[1772563361572,2.39162391,1996.2,1995.8,2.39532949]
[1772563361774,2.39162391,1996.3,1995.8,2.39532949]
[1772563362475,2.39162391,1996.3,1995.6,2.39532949]
[1772563363179,2.39162391,1996.3,1995.3,4.36657595]
[1772563363371,2.39162391,1995.9,1995.0,0.00453377]
[1772563363679,2.39162391,1995.7,1995.0,0.00453377]
[1772563365076,2.39162391,1995.5,1995.0,0.00453377]
[1772563365275,2.39162391,1995.5,1994.5,6.51133544]
[1772563365578,2.39162391,1995.5,1994.6,2.39532949]
[1772563366182,2.39720263,1995.5,1994.6,2.40135959]
[1772563366480,2.39720263,1995.5,1994.6,0.0060301]
[1772563366882,2.39162391,1995.3,1994.6,0.0060301]
[1772563367080,0.00557872,1995.5,1994.6,0.0060301]
[1772563367081,9.35262391,1995.2,1994.6,2.40135959]
[1772563367482,2.39162391,1995.1,1994.6,2.40135959]
[1772563368187,2.39162391,1995.1,1994.6,0.0060301]
[1772563368685,2.39162391,1995.1,1994.6,2.416659]
[1772563370078,2.39162391,1995.1,1994.6,0.0060301]
[1772563370382,2.39162391,1995.1,1994.3,2.6613189]
[1772563371284,2.39162391,1995.1,1994.3,2.66488741]
[1772563372682,9.33735127,1995.3,1994.3,2.66488741]
[1772563372884,2.37035127,1995.2,1994.3,2.66488741]
[1772563373483,2.37035127,1995.2,1994.5,2.4106289]
[1772563373884,2.37035127,1995.4,1994.7,2.4106289]
[1772563374384,2.37035127,1995.4,1994.6,0.25066]
[1772563374682,0.00557872,1995.5,1994.6,2.6612889]
[1772563374881,2.37592999,1995.5,1994.6,2.6612889]
[1772563375781,0.00557872,1995.5,1994.6,2.6612889]
[1772563376085,0.00557872,1995.5,1995.1,2.4106289]
[1772563377886,9.34135127,1995.8,1995.1,2.4106289]
[1772563378086,2.37035127,1995.7,1995.1,2.4106289]
[1772563378887,2.37483355,1995.7,1995.1,2.4106289]
[1772563380188,2.37035127,1996.1,1995.3,2.4106289]
[1772563380388,2.37035127,1996.1,1995.5,2.4106289]
[1772563381289,0.0047089,1996.1,1995.5,2.4106289]
[1772563381489,2.37035127,1996.3,1995.5,2.4106289]
[1772563381991,2.37035127,1996.3,1995.6,0.25054]
[1772563382387,2.37504049,1996.3,1995.6,2.6611689]
[1772563386688,2.37035127,1996.7,1995.6,2.6611689]
[1772563386990,2.37035127,1996.7,1995.9,2.4106289]
[1772563387594,2.37439507,1996.7,1995.9,2.41508126]
[1772563388892,2.37439507,1996.7,1996.1,2.4106289]
[1772563389096,0.0040438,1996.7,1996.1,2.4106289]
[1772563389298,2.37035127,1996.9,1996.3,2.4106289]
[1772563390292,2.37622905,1996.9,1996.3,2.4106289]
[1772563390693,0.00587778,1996.9,1996.3,2.4106289]
[1772563391798,0.00587778,1996.9,1996.5,2.4106289]
[1772563391997,2.37035127,1997.2,1996.5,2.4106289]
[1772563392402,2.37035127,1997.2,1996.7,2.4106289]
[1772563392604,2.37035127,1997.4,1996.7,2.4106289]
[1772563392899,2.37433218,1997.4,1996.7,2.4106289]
[1772563393097,0.00398091,1997.4,1996.8,0.25039]
[1772563393298,2.37035127,1997.6,1996.9,2.4106289]
[1772563394299,2.37035127,1998.0,1997.1,2.4106289]
[1772563395003,2.37035127,1998.0,1997.3,2.4106289]
[1772563395503,2.37394513,1998.0,1997.3,0.00628241]
[1772563395906,2.37035127,1997.8,1996.8,2.4106289]
[1772563396903,2.37035127,1997.8,1996.8,2.41501247]
[1772563397803,2.37035127,1997.8,1996.8,0.00438357]
[1772563398101,2.15308791,1998.0,1997.2,2.21033366]
[1772563398602,2.15308791,1998.0,1997.3,0.25033]
[1772563398803,2.15308791,1998.0,1997.4,2.21033366]
[1772563399307,2.14949405,1998.5,1997.6,2.21033366]
[1772563399604,2.14949405,1998.5,1997.1,6.15861]
[1772563399605,2.14949405,1998.5,1997.2,2.21033366]
[1772563399805,2.14949405,1998.5,1997.2,2.46066366]
[1772563400002,2.23778562,1998.1,1997.2,2.46066366]
[1772563400202,2.23778562,1997.8,1996.9,2.19886651]
[1772563400405,2.23778562,1997.8,1996.8,2.20325008]
[1772563401001,2.23778562,1997.8,1996.8,0.00438357]
[1772563401806,2.23778562,1997.8,1996.8,2.20325008]
[1772563402206,7.22324,1998.0,1996.8,0.00438357]
[1772563402207,2.23778562,1997.5,1996.8,0.00438357]
[1772563402401,2.23778562,1997.3,1996.8,0.00438357]
[1772563402603,2.23778562,1997.3,1996.2,2.19886651]
[1772563402802,2.23778562,1997.2,1996.2,2.19886651]
[1772563403204,2.23778562,1997.2,1995.7,2.19886651]
[1772563403407,2.23778562,1996.9,1995.7,2.19886651]
[1772563403609,2.23778562,1996.7,1995.7,2.2044538]
[1772563403906,2.23778562,1996.6,1995.7,2.2044538]
[1772563404301,2.23778562,1996.6,1995.7,0.00558729]
[1772563406705,2.23778562,1996.6,1995.7,2.2044538]
[1772563407008,2.23778562,1996.6,1995.7,0.00558729]
[1772563407409,2.23778562,1996.6,1995.7,2.2044538]
[1772563407905,2.23778562,1996.6,1995.7,0.00558729]
[1772563408111,4.95254591,1996.6,1995.7,0.00558729]
[1772563408304,2.23778562,1996.5,1995.7,0.00558729]
[1772563408506,2.23778562,1996.5,1995.3,2.19886651]
[1772563408706,2.23778562,1996.2,1995.1,2.19886651]
[1772563408906,2.23778562,1996.0,1995.1,2.19886651]
[1772563409106,2.23778562,1996.0,1994.9,2.44948651]
[1772563409510,2.23778562,1996.0,1994.9,2.45481808]
[1772563409812,2.23778562,1995.9,1994.9,0.25595157]
[1772563410214,2.23778562,1995.9,1994.9,2.45481808]
[1772563410612,2.23778562,1995.6,1994.9,0.00533157]
[1772563410806,2.23778562,1995.4,1994.5,2.19886651]
[1772563411110,2.23778562,1995.3,1994.1,2.19886651]
[1772563411312,2.23778562,1995.0,1994.1,2.19886651]
[1772563411913,2.24233452,1995.0,1994.1,2.20532159]
[1772563412310,2.23778562,1994.8,1994.1,2.20532159]
[1772563413817,2.23778562,1994.7,1993.7,2.19886651]
[1772563414014,2.23778562,1994.8,1993.9,2.19886651]
[1772563414211,2.24233452,1995.0,1993.9,2.19886651]
[1772563414911,2.24233452,1995.0,1994.0,2.19886651]
[1772563417614,0.0045489,1995.0,1994.2,2.19886651]
[1772563418321,2.24233452,1995.0,1994.2,2.19886651]
[1772563418621,0.0045489,1995.0,1994.4,2.19886651]
[1772563419117,2.23778562,1995.4,1994.4,2.19886651]
[1772563419523,2.23778562,1995.4,1994.6,2.19886651]
[1772563420114,2.24198121,1995.4,1994.6,2.19886651]
[1772563420816,2.23778562,1995.3,1994.1,2.19886651]
[1772563421918,2.23778562,1995.3,1994.3,2.19886651]
[1772563422123,2.23778562,1995.3,1994.5,2.19886651]
[1772563422323,0.00419559,1995.4,1994.7,2.19886651]
[1772563422520,2.23778562,1995.7,1994.9,2.19886651]
[1772563423624,2.24302204,1995.7,1994.9,2.19886651]
[1772563426325,0.00523642,1995.7,1995.1,2.19886651]
[1772563427029,2.23778562,1995.9,1995.3,2.19886651]
[1772563427425,2.23778562,1995.9,1994.9,2.19886651]
[1772563428027,2.24384465,1995.9,1994.9,2.20255103]
[1772563429627,2.24384465,1995.9,1994.9,0.00368452]
[1772563429628,2.336887,1995.6,1994.9,0.00368452]
[1772563432129,2.336887,1995.6,1994.6,2.1565361]
[1772563433238,2.336887,1995.6,1994.6,2.41317665]
[1772563434325,2.336887,1995.8,1995.1,2.1565361]
[1772563438536,2.336887,1995.8,1995.0,0.25061]
[1772563438736,2.336887,1995.8,1994.7,2.1565361]
[1772563440234,2.587407,1995.8,1994.6,0.25664055]
[1772563440536,2.336887,1995.6,1994.6,0.00598055]
[1772563440933,2.336887,1995.2,1994.1,6.27779781]
[1772563441134,2.336887,1995.2,1994.1,2.1565361]
[1772563441330,2.336887,1995.0,1993.7,6.27779781]
[1772563441636,2.336887,1994.6,1993.5,2.1565361]
[1772563441833,2.336887,1994.5,1993.5,2.16017009]
[1772563442031,2.336887,1994.5,1993.5,0.00363399]
[1772563442032,2.336887,1994.3,1993.5,0.00363399]
[1772563442235,2.336887,1994.1,1992.9,2.1565361]
[1772563442626,2.336887,1993.9,1992.7,2.1565361]
[1772563442833,2.336887,1993.9,1992.5,4.12126171]
[1772563442834,2.78723407,1993.8,1992.5,2.1565361]
[1772563443035,2.336887,1993.6,1992.7,2.1565361]
[1772563443236,2.336887,1993.6,1992.7,2.16034241]
[1772563445628,2.336887,1993.6,1992.7,0.00380631]
[1772563446834,2.336887,1993.6,1992.1,0.25098]
[1772563446835,2.587687,1993.6,1992.1,2.4075161]
[1772563447030,2.336887,1993.3,1991.9,2.1565361]
[1772563447235,2.336887,1993.1,1991.9,2.1565361]
[1772563447537,2.336887,1993.1,1992.1,2.1565361]
[1772563447740,2.3424633,1993.1,1992.1,2.16193106]
[1772563448730,2.3424633,1993.1,1992.1,0.00539496]
[1772563449138,2.336887,1992.9,1991.3,2.1565361]
[1772563449332,2.336887,1992.7,1991.3,2.1565361]
[1772563450041,2.336887,1992.7,1991.3,0.00380488]
[1772563450443,2.336887,1992.3,1990.8,2.1565361]
[1772563450841,2.336887,1992.2,1990.9,2.1565361]
[1772563451440,2.336887,1992.2,1990.9,2.16143104]
[1772563452337,2.336887,1992.4,1991.3,2.1565361]
[1772563452540,2.336887,1992.4,1991.4,2.1565361]
[1772563453336,2.336887,1992.6,1991.5,2.4075861]
[1772563453550,2.336887,1992.5,1991.2,2.1565361]
[1772563453845,2.336887,1992.5,1991.4,2.1565361]
[1772563454040,2.336887,1993.0,1991.6,2.1565361]
[1772563456150,2.336887,1992.4,1991.0,2.1565361]
[1772563456443,2.336887,1992.2,1990.9,0.00489494]
[1772563456843,2.336887,1992.0,1990.9,0.00489494]
[1772563458345,2.14040748,1991.8,1990.4,2.081321]
[1772563459444,2.14040748,1991.8,1990.8,2.081321]
[1772563459846,0.25094,1992.4,1991.0,2.081321]
[1772563460050,2.14040748,1992.2,1991.0,2.081321]
[1772563463042,2.14040748,1992.2,1991.2,2.17067421]
[1772563463248,2.14040748,1992.2,1991.4,2.17067421]
[1772563463447,2.09388776,1992.4,1991.4,2.17067421]
[1772563464348,2.09388776,1992.4,1991.6,2.17067421]
[1772563464550,2.09388776,1992.6,1991.6,2.17067421]
[1772563465250,2.09388776,1992.6,1991.8,2.17067421]
[1772563465445,2.09388776,1992.6,1991.8,2.17690294]
[1772563467950,6.939,1993.0,1992.2,2.17067421]
[1772563467951,2.09388776,1993.0,1992.2,2.17067421]
[1772563468254,2.09388776,1993.0,1992.1,0.25098]
[1772563468457,2.09388776,1993.0,1992.1,2.42165421]
[1772563468749,2.09388776,1993.0,1991.8,2.17690294]
[1772563470253,2.09388776,1993.0,1992.0,2.17067421]
[1772563473854,2.09388776,1993.0,1992.2,2.17067421]
[1772563475256,0.0055763,1993.1,1992.4,2.17067421]
[1772563475557,2.09388776,1993.4,1992.8,2.17067421]
[1772563475758,9.02788776,1993.6,1992.8,2.17067421]
[1772563476059,2.09388776,1993.5,1992.8,2.17067421]
[1772563476653,2.10000481,1993.5,1992.3,2.17067421]
[1772563478655,2.35082481,1993.5,1992.3,2.17067421]
[1772563478854,2.09388776,1993.3,1992.3,2.17067421]
[1772563480558,2.09388776,1993.3,1992.1,2.17067421]
[1772563480765,2.09388776,1993.1,1992.1,2.17067421]
[1772563481561,2.09388776,1993.1,1992.2,2.42164421]
[1772563482160,2.09388776,1993.4,1992.2,2.42164421]
[1772563482465,2.09388776,1993.4,1992.6,2.17067421]
[1772563483762,0.00611705,1993.5,1992.8,2.17067421]
[1772563483960,2.09388776,1993.4,1992.8,2.17067421]
[1772563484264,2.09388776,1993.4,1992.7,0.2509]
[1772563484460,2.09388776,1993.4,1992.7,2.42157421]
[1772563484861,0.00611705,1993.5,1992.7,2.42157421]
[1772563485060,2.09388776,1993.8,1992.7,2.42157421]
[1772563486063,2.10014986,1993.8,1992.7,2.42157421]
[1772563488567,0.0062621,1993.8,1993.2,2.096245]
[1772563488770,2.17577838,1993.8,1993.2,0.00375779]
[1772563490669,2.17577838,1993.8,1992.6,2.347145]
[1772563491567,2.17577838,1993.8,1992.6,2.35245504]
[1772563491769,2.16951628,1993.6,1992.6,0.00531004]
[1772563492465,2.16951628,1993.4,1992.6,0.00531004]
[1772563492674,2.16951628,1993.3,1992.6,0.00531004]
[1772563492862,2.16951628,1993.3,1992.1,0.25097]
[1772563493170,2.16951628,1993.3,1992.2,2.096245]
[1772563493370,2.16951628,1993.1,1992.1,2.347215]
[1772563493865,2.16951628,1993.1,1992.1,2.35224149]
[1772563494270,2.16951628,1993.3,1992.6,2.096245]
[1772563494673,2.16951628,1993.7,1992.8,2.096245]
[1772563496573,2.16951628,1993.7,1993.0,2.096245]
[1772563501173,2.71966829,1993.6,1992.6,6.22184808]
[1772563501376,2.71966829,1993.6,1992.4,6.14220973]
[1772563501377,2.60630589,1993.5,1992.4,2.096245]
[1772563501580,2.16951628,1993.3,1992.4,2.096245]
[1772563501878,2.16951628,1993.2,1992.4,2.096245]
[1772563502474,2.16951628,1993.2,1992.1,4.38160957]
[1772563502671,2.16951628,1993.0,1992.1,2.35225149]
[1772563502875,2.16951628,1993.0,1992.1,0.00502649]
[1772563502876,2.16951628,1992.9,1992.1,0.00502649]
[1772563503073,2.16951628,1992.9,1992.1,2.10127149]
[1772563503278,2.16951628,1993.2,1992.5,2.096245]
[1772563504174,2.16951628,1993.2,1992.4,2.347185]
[1772563504477,2.16951628,1993.2,1992.4,2.096245]
[1772563505377,2.16951628,1993.2,1992.2,2.096245]
[1772563505378,2.42035628,1993.2,1992.2,2.096245]
[1772563505578,2.16951628,1993.0,1992.1,2.10127149]
[1772563505778,2.16951628,1993.0,1992.3,2.096245]
[1772563506080,2.16951628,1993.2,1992.5,2.096245]
[1772563506281,2.16951628,1993.2,1992.4,2.347185]
[1772563506580,2.16951628,1993.2,1992.2,2.096245]
[1772563507080,2.16951628,1993.0,1992.2,2.096245]
[1772563507782,2.16951628,1992.8,1992.1,0.00502649]
[1772563507985,2.16951628,1992.7,1992.1,0.00502649]
[1772563508779,2.16951628,1992.7,1991.8,2.096245]
[1772563509281,2.16951628,1992.1,1991.4,2.096245]
[1772563509783,2.17308211,1992.1,1991.4,2.10122017]
[1772563510280,2.17308211,1992.1,1991.4,0.00497517]
[1772563510484,2.17308211,1992.1,1991.0,2.096245]
[1772563510683,2.16951628,1991.5,1990.3,2.096245]
[1772563510879,2.16951628,1991.3,1990.3,2.096245]
[1772563511086,6.94,1991.4,1990.7,2.096245]
[1772563511283,6.943,1991.8,1990.9,2.096245]
[1772563511585,6.943,1991.8,1991.1,2.096245]
[1772563511785,2.16951628,1991.9,1991.1,2.096245]
[1772563511986,0.00356583,1992.1,1991.3,2.096245]
[1772563512182,0.00356583,1992.1,1991.4,0.25107]
[1772563512386,2.17308211,1992.1,1991.5,2.096245]
[1772563512687,2.17308211,1992.1,1991.3,2.347315]
[1772563512688,0.00356583,1992.1,1991.3,2.347315]
[1772563513188,2.16951628,1992.4,1991.6,2.096245]
[1772563513384,2.16951628,1992.4,1991.8,2.096245]
[1772563513783,2.16951628,1992.4,1991.7,2.096245]
[1772563513980,2.16951628,1992.4,1991.3,2.096245]
[1772563514285,2.17472117,1992.4,1991.3,2.096245]
[1772563515190,2.17472117,1992.4,1991.0,2.096245]
[1772563516288,2.17472117,1992.4,1991.2,2.096245]
[1772563516484,2.17472117,1992.4,1991.4,2.096245]
[1772563516678,2.17472117,1992.4,1991.0,2.096245]
[1772563516889,2.16951628,1992.1,1991.0,2.096245]
[1772563517592,2.16951628,1991.9,1991.0,2.096245]
[1772563519494,2.07676392,1992.4,1991.3,2.25459116]
[1772563519691,2.07676392,1992.4,1991.5,2.25459116]
[1772563520189,2.07848995,1992.3,1991.5,2.25459116]
[1772563520694,2.07848995,1992.0,1990.9,2.24290732]
[1772563521495,2.07848995,1992.0,1990.9,0.00401742]
[1772563521788,2.07848995,1992.0,1990.9,2.24290732]
[1772563521995,2.07848995,1992.0,1991.1,2.2388899]
[1772563522494,2.07848995,1992.0,1991.2,2.4899799]
[1772563524189,2.07848995,1992.2,1991.5,2.2388899]
[1772563524694,2.07848995,1992.2,1991.2,2.2388899]
[1772563524897,2.07848995,1992.2,1991.0,2.2388899]
[1772563525796,2.07848995,1991.9,1990.9,2.49402732]
[1772563525996,2.07848995,1991.9,1990.9,0.25513742]
[1772563526195,2.07848995,1991.9,1990.9,0.00401742]
[1772563526596,2.07848995,1991.9,1990.9,2.24290732]
[1772563526899,2.07848995,1991.9,1991.1,2.2388899]
[1772563528001,2.07848995,1991.9,1991.3,2.2388899]
[1772563528395,2.07848995,1992.3,1991.5,2.2388899]
[1772563528595,2.07848995,1992.3,1991.4,2.4899599]
[1772563528897,0.00520489,1992.4,1991.8,2.4898999]
[1772563529099,2.07848995,1993.0,1992.1,2.2388899]
[1772563529299,2.07848995,1993.0,1991.9,2.2388899]
[1772563529990,2.08291967,1993.0,1991.9,2.2388899]
[1772563530191,2.07848995,1992.8,1991.5,4.37665308]
[1772563530494,2.07848995,1992.6,1991.6,2.2388899]
[1772563531698,2.07848995,1992.5,1991.6,2.2388899]
[1772563532498,2.07848995,1992.5,1991.4,2.2388899]
[1772563533201,2.07848995,1992.2,1991.4,2.2388899]
[1772563534401,2.07848995,1992.0,1991.1,2.2388899]
[1772563535397,2.07848995,1991.8,1990.9,0.00401742]
[1772563536101,2.07848995,1991.8,1990.9,2.24290732]
[1772563537503,2.07848995,1991.6,1990.8,2.2388899]
[1772563538294,2.07848995,1991.8,1990.8,2.2388899]
[1772563538602,0.00386181,1991.6,1990.8,2.24354143]
[1772563539105,0.00386181,1991.6,1991.2,2.2388899]
[1772563539305,2.07848995,1992.0,1991.2,2.2388899]
[1772563540101,2.07848995,1992.0,1991.4,2.2388899]
[1772563540404,0.004642,1992.0,1991.4,2.2388899]
[1772563541000,0.004642,1992.0,1991.3,0.25108]
[1772563541001,2.08313195,1992.0,1991.3,0.25108]
[1772563541201,2.08313195,1992.0,1991.3,2.2388899]
[1772563541396,2.08313195,1992.0,1991.1,2.2388899]
[1772563541602,2.07848995,1991.9,1990.9,4.12560308]
[1772563541908,2.07848995,1991.7,1990.9,2.2388899]
[1772563543199,2.07848995,1991.7,1991.1,2.2388899]
[1772563543903,2.07848995,1991.7,1991.2,2.2388899]
[1772563544108,2.07848995,1991.9,1991.2,2.2388899]
[1772563544505,0.004642,1992.0,1991.4,2.2388899]
[1772563545008,2.08313195,1992.0,1991.4,2.2388899]
[1772563545410,0.004642,1992.0,1991.4,2.2388899]
[1772563546308,2.07848995,1992.4,1991.6,2.2388899]
[1772563547302,2.08293776,1992.4,1991.6,2.2388899]
[1772563549007,2.08293776,1992.4,1991.7,2.49768176]
[1772563549206,0.00444781,1992.4,1991.7,2.49768176]
[1772563549406,2.16753703,1992.4,1991.7,2.49768176]
[1772563552122,2.16308922,1992.9,1992.0,2.24665176]
[1772563552412,2.16308922,1992.9,1991.8,4.12560308]
[1772563552413,2.16308922,1992.8,1991.8,2.24665176]
[1772563553015,2.16805978,1992.8,1991.8,2.24665176]
[1772563553613,2.16308922,1992.5,1991.6,2.24665176]
[1772563553807,2.16308922,1992.3,1991.4,2.49771176]
[1772563554215,2.16308922,1992.3,1991.5,2.24665176]
[1772563554614,7.103,1992.4,1991.5,2.24665176]
[1772563554912,2.16308922,1992.5,1991.7,2.24665176]
[1772563555618,2.16308922,1992.5,1991.6,2.49769176]
[1772563558816,2.16308922,1992.5,1991.6,2.24665176]
[1772563559516,2.16308922,1992.5,1991.4,2.24665176]
[1772563560420,2.16308922,1992.5,1991.8,2.24665176]
[1772563561413,2.16308922,1992.7,1992.0,2.24665176]
[1772563562119,2.16308922,1992.7,1991.5,14.35354625]
[1772563562120,2.41401922,1992.5,1991.4,6.37225484]
[1772563562317,2.16308922,1992.3,1991.2,4.12560308]
[1772563562521,2.16308922,1991.9,1991.0,6.37225484]
[1772563562721,2.16308922,1991.9,1990.8,2.25130329]
[1772563563016,2.16308922,1991.9,1990.9,2.49778176]
[1772563563215,2.16308922,1991.9,1991.0,2.24665176]
[1772563563616,2.16308922,1991.6,1990.3,6.37225484]
[1772563563817,2.16308922,1991.4,1990.3,2.24665176]
[1772563564120,2.16308922,1991.2,1990.3,2.24665176]
[1772563564714,2.16678411,1991.2,1990.3,0.00448022]
[1772563565015,2.16308922,1991.0,1990.3,0.00448022]
[1772563565719,2.16308922,1991.0,1990.3,2.25113198]
[1772563566128,2.16678411,1991.2,1990.3,2.25113198]
[1772563566814,2.16678411,1991.2,1990.3,0.00448022]
[1772563567617,2.16678411,1991.2,1990.3,2.25113198]
[1772563569814,2.16678411,1991.2,1990.3,0.00448022]
[1772563570323,2.16678411,1991.2,1990.4,2.24665176]
[1772563570618,2.41788411,1991.2,1989.9,2.24665176]
[1772563571413,2.16678411,1991.2,1989.9,2.49791176]
[1772563571623,2.16678411,1991.2,1989.9,2.50173581]
[1772563571821,0.00369489,1991.2,1990.2,2.24665176]
[1772563572022,2.16678411,1991.2,1990.4,2.24665176]
[1772563572222,0.00369489,1991.2,1990.4,2.24665176]
[1772563572821,2.16678411,1991.2,1990.4,2.24665176]
[1772563573318,7.14,1991.9,1990.6,2.24665176]
[1772563573319,2.16308922,1991.6,1990.6,2.24665176]
[1772563573518,2.16308922,1991.6,1990.5,0.25118]
[1772563573519,2.16308922,1991.8,1990.8,2.24665176]
[1772563574519,2.16959196,1991.8,1990.6,2.24665176]
[1772563577831,2.16959196,1991.8,1990.8,2.24665176]
[1772563581121,0.00650274,1991.8,1991.0,2.01216994]
[1772563581530,2.11467333,1991.8,1991.0,2.01216994]
[1772563581825,2.11467333,1991.8,1990.7,6.17849]
[1772563581826,0.00650274,1991.8,1991.2,2.01216994]
[1772563582031,2.10817059,1992.2,1991.2,2.01216994]
[1772563582631,2.10817059,1992.2,1991.4,2.01216994]
[1772563582825,2.10817059,1992.4,1991.6,2.01216994]
[1772563583028,2.11351772,1992.4,1991.6,2.01747446]
[1772563583428,0.00534713,1992.4,1991.8,2.01216994]
[1772563585737,2.11351772,1992.4,1991.6,2.01747446]
[1772563590630,2.11351772,1992.4,1991.6,0.00530452]
[1772563591729,2.11351772,1992.4,1990.8,2.01216994]
[1772563591730,2.10817059,1992.0,1990.8,2.01216994]
[1772563591932,2.10817059,1991.9,1990.8,2.01216994]
[1772563592738,2.10817059,1991.9,1990.8,2.01672417]
[1772563594535,2.10817059,1991.9,1991.2,2.01216994]
[1772563595337,2.10817059,1992.3,1991.4,2.01216994]
[1772563595536,0.00534713,1992.4,1991.5,2.01216994]
[1772563595732,0.00534713,1992.4,1991.8,2.01216994]
[1772563596641,2.11351772,1992.4,1991.8,2.01216994]
[1772563598941,0.00534713,1992.4,1991.8,2.01216994]
[1772563599336,2.11351772,1992.4,1991.8,2.01216994]
[1772563599534,2.11351772,1992.4,1991.4,2.01216994]
[1772563601241,2.11351772,1992.4,1991.6,2.01216994]
[1772563602540,2.11351772,1992.4,1991.7,0.25103]
[1772563602745,0.00534713,1992.4,1991.8,2.01216994]
[1772563603734,2.10817059,1993.0,1992.2,2.01216994]
[1772563603939,0.950915,1993.2,1992.2,2.01216994]
[1772563603940,3.05908559,1993.2,1992.2,2.01216994]
[1772563604140,7.081,1993.4,1992.2,2.01216994]
[1772563604141,2.10817059,1993.1,1992.2,2.01216994]
[1772563604745,2.10817059,1992.9,1992.2,0.00553354]
[1772563605547,2.10817059,1992.9,1992.2,2.01770348]
[1772563607946,2.10817059,1992.9,1992.2,2.26866348]
[1772563608148,1.98831443,1993.1,1992.2,2.26866348]
[1772563608649,0.00601563,1993.1,1992.2,2.26866348]
[1772563609050,1.98831443,1993.1,1992.2,2.26866348]
[1772563609547,1.98831443,1993.1,1992.2,2.01770348]
[1772563610753,1.98831443,1993.1,1992.2,2.26867348]
[1772563611746,0.00601563,1993.1,1992.2,2.26867348]
[1772563611950,0.00601563,1993.1,1992.7,2.18438376]
[1772563612144,1.9822988,1993.3,1992.7,2.18438376]
[1772563613151,1.987865,1993.3,1992.7,2.18438376]
[1772563614749,1.987865,1993.3,1992.3,2.18438376]
[1772563615146,1.987865,1993.3,1992.5,2.18438376]